[Event "Cracovia Festival-A 2023"]
[Site "Krakow"]
[Date "2023.12.29"]
[Round "3.9"]
[White "Damia, Angelo"]
[Black "Golubka, Petro"]
[Result "1/2-1/2"]
[ECO "C15"]
[WhiteElo "2251"]
[BlackElo "2440"]
[Annotator "ChessBase"]
[PlyCount "128"]
[EventDate "2023.12.24"]
[EventType "swiss"]
[EventCountry "POL"]
[SourceTitle "playchess.com"]
[Source "ChessBase"]
[SourceQuality "1"]
[TimeControl "40/5400+30:1800+30"]

1. e4 {[%emt 0:00:03]} e6 {[%emt 0:18:06]} 2. d4 {[%emt 0:00:06]} d5 {[%emt 0:00:03]} 3. Nc3 {[%emt 0:01:25]} Bb4 {[%emt 0:00:04]} 4. exd5 {[%emt 0:00:26]} exd5 {[%emt 0:00:14]} 5. Bd3 {[%emt 0:00:07]} Nc6 {[%emt 0:00:16]} 6. Nge2 {[%emt 0:01:23]} Bg4 {[%emt 0:01:41]} 7. f3 {[%emt 0:03:40]} Bh5 {[%emt 0:00:08]} 8. Nf4 {[%emt 0:06:17]} Bg6 {[%emt 0:00:12]} 9. a3 {[%emt 0:03:11]} Bxc3+ {[%emt 0:02:12]} 10. bxc3 {[%emt 0:00:09]} Bxd3 {[%emt 0:00:25]} 11. cxd3 {[%emt 0:00:11]} Qd7 {[%emt 0:00:24]} 12. Qe2+ {[%emt 0:02:32]} Nge7 {[%emt 0:02:59]} 13. O-O {[%emt 0:01:07]} h5 {[%emt 0:00:37]} 14. a4 {[%emt 0:00:21]} g5 {[%emt 0:00:39]} 15. Nh3 {[%emt 0:00:15]} f6 {[%emt 0:00:07]} 16. Ba3 {[%emt 0:01:27]} O-O-O {[%emt 0:01:40]} 17. Rae1 {[%emt 0:02:53]} Nf5 {[%emt 0:00:36]} 18. Qe6 {[%emt 0:00:08]} Rh6 {[%emt 0:00:59]} 19. Rf2 {[%emt 0:02:38]} Ng7 {[%emt 0:00:48]} 20. Qxd7+ {[%emt 0:00:24]} Kxd7 {[%emt 0:00:24]} 21. Rfe2 {[%emt 0:00:31]} Re8 {[%emt 0:01:21]} 22. Rxe8 {[%emt 0:01:33]} Nxe8 {[%emt 0:00:20]} 23. Nf2 {[%emt 0:00:19]} f5 {[%emt 0:02:15]} 24. Bc1 {[%emt 0:00:41]} Rg6 {[%emt 0:03:34]} 25. Nh3 {[%emt 0:02:26]} f4 {[%emt 0:00:10]} 26. g3 {[%emt 0:00:40]} Nd6 {[%emt 0:07:46]} 27. gxf4 {[%emt 0:00:32]} g4 {[%emt 0:00:09]} 28. Ng5 {[%emt 0:05:05]} b5 {[%emt 0:01:16]} 29. axb5 {[%emt 0:02:18]} Nxb5 {[%emt 0:00:06]} 30. Bd2 {[%emt 0:00:15]} Nd6 {[%emt 0:01:36]} 31. Kf2 {[%emt 0:00:39]} a5 {[%emt 0:04:37]} 32. fxg4 {[%emt 0:02:16]} hxg4 {[%emt 0:00:06]} 33. Kg3 {[%emt 0:00:02]} Rh6 {[%emt 0:00:20]} 34. Re2 {[%emt 0:00:13]} a4 {[%emt 0:00:38]} 35. Kxg4 {[%emt 0:00:30]} a3 {[%emt 0:01:08]} 36. h4 {[%emt 0:23:09]} Ne7 {[%emt 0:08:08]} 37. Bc1 {[%emt 0:08:46]} Nb5 {[%emt 0:04:05]} 38. c4 {[%emt 0:06:10]} Nc3 {[%emt 0:05:12]} 39. Rxe7+ {[%emt 0:00:07]} Kxe7 {[%emt 0:00:06]} 40. Bxa3+ {[%emt 0:00:00]} Ke8 {[%emt 0:00:00]} 41. f5 {[%emt 0:21:32]} Nd1 {[%emt 0:20:01]} 42. Ne6 {[%emt 0:05:04]} c6 {[%emt 0:01:51]} 43. Kg5 {[%emt 0:05:17]} Rh8 {[%emt 0:00:17]} 44. cxd5 {[%emt 0:02:15]} cxd5 {[%emt 0:00:08]} 45. Kg6 {[%emt 0:10:47]} Rxh4 {[%emt 0:00:38]} 46. Ng7+ {[%emt 0:05:55]} Kd7 {[%emt 0:00:31]} 47. f6 {[%emt 0:00:01]} Rg4+ {[%emt 0:00:42]} 48. Kf5 {[%emt 0:00:10]} Ne3+ {[%emt 0:13:12]} 49. Ke5 {[%emt 0:00:05]} Rg5+ {[%emt 0:00:13]} 50. Kf4 {[%emt 0:00:09]} Rg6 {[%emt 0:00:01]} 51. Kxe3 {[%emt 0:02:50]} Rxf6 {[%emt 0:00:07]} 52. Nh5 {[%emt 0:00:17]} Rf5 {[%emt 0:00:08]} 53. Ng3 {[%emt 0:00:39]} Rf6 {[%emt 0:00:44]} 54. Bc5 {[%emt 0:00:34]} Rf7 {[%emt 0:00:59]} 55. Nh5 {[%emt 0:00:47]} Rf1 {[%emt 0:01:03]} 56. Nf4 {[%emt 0:00:31]} Kc6 {[%emt 0:00:03]} 57. Ng6 {[%emt 0:00:23]} Kd7 {[%emt 0:00:19]} 58. Ke2 {[%emt 0:02:33]} Rf6 {[%emt 0:01:15]} 59. Ne7 {[%emt 0:01:13]} Ke6 {[%emt 0:00:55]} 60. Kd2 {[%emt 0:00:17]} Rf1 {[%emt 0:01:17]} 61. Kc2 {[%emt 0:00:29]} Rg1 {[%emt 0:00:29]} 62. Kb3 {[%emt 0:01:17]} Rg3 {[%emt 0:02:36]} 63. Kb4 {[%emt 0:00:58]} Rxd3 {[%emt 0:00:11]} 64. Kb5 {[%emt 0:00:06]} Rxd4 {[%emt 0:00:15]} 1/2-1/2

[Event "Cracovia Festival-A 2023"]
[Site "Krakow"]
[Date "2023.12.29"]
[Round "3.10"]
[White "Sofronie, Iulian"]
[Black "Janeczko, Jakub"]
[Result "0-1"]
[ECO "A45"]
[WhiteElo "2438"]
[BlackElo "2283"]
[Annotator "ChessBase"]
[PlyCount "72"]
[EventDate "2023.12.24"]
[EventType "swiss"]
[EventCountry "POL"]
[SourceTitle "playchess.com"]
[Source "ChessBase"]
[SourceQuality "1"]
[TimeControl "40/5400+30:1800+30"]

1. d4 {[%emt 0:00:02]} Nf6 {[%emt 0:00:10]} 2. Bf4 {[%emt 0:00:05]} e6 {[%emt 0:00:39]} 3. e3 {[%emt 0:00:44]} c5 {[%emt 0:00:09]} 4. c3 {[%emt 0:06:53]} Nc6 {[%emt 0:00:53]} 5. Nd2 {[%emt 0:00:44]} d5 {[%emt 0:00:23]} 6. Ngf3 {[%emt 0:00:25]} cxd4 {[%emt 0:00:09]} 7. exd4 {[%emt 0:00:07]} Nh5 {[%emt 0:00:07]} 8. Be3 {[%emt 0:03:44]} Bd6 {[%emt 0:00:20]} 9. Ne5 {[%emt 0:06:56]} Nf6 {[%emt 0:00:15]} 10. f4 {[%emt 0:01:15]} Qb6 {[%emt 0:00:05]} 11. Qb3 {[%emt 0:01:32]} Ng8 {[%emt 0:00:02]} 12. Be2 {[%emt 0:11:16]} Nh6 {[%emt 0:05:02]} 13. Bf2 {[%emt 0:02:16]} f6 {[%emt 0:03:02]} 14. Nd3 {[%emt 0:00:27]} Qc7 {[%emt 0:06:20]} 15. g3 {[%emt 0:01:39]} Nf5 {[%emt 0:03:17]} 16. g4 {[%emt 0:08:55]} Nfe7 {[%emt 0:00:52]} 17. Bg3 {[%emt 0:01:55]} b6 {[%emt 0:20:32]} 18. Rf1 {[%emt 0:19:29]} Bd7 {[%emt 0:02:25]} 19. Rf3 {[%emt 0:05:03]} h5 {[%emt 0:01:57]} 20. gxh5 {[%emt 0:03:30]} Nf5 {[%emt 0:00:29]} 21. Bf2 {[%emt 0:01:17]} Rxh5 {[%emt 0:01:13]} 22. Nf1 {[%emt 0:01:15]} Rh7 {[%emt 0:10:53]} 23. a4 {[%emt 0:00:56]} Kf7 {[%emt 0:03:16]} 24. Qd1 {[%emt 0:07:29]} Rah8 {[%emt 0:01:46]} 25. Rc1 {[%emt 0:01:34]} Na5 {[%emt 0:06:17]} 26. Qc2 {[%emt 0:00:59]} Rxh2 {[%emt 0:08:56]} 27. Nxh2 {[%emt 0:00:21]} Rxh2 {[%emt 0:00:02]} 28. b3 {[%emt 0:02:09]} Ba3 {[%emt 0:02:22]} 29. Rb1 {[%emt 0:05:49]} Nb7 {[%emt 0:05:32]} 30. b4 {[%emt 0:03:32]} Nbd6 {[%emt 0:03:58]} 31. Qb3 {[%emt 0:00:04]} Nc4 {[%emt 0:00:58]} 32. Bf1 {[%emt 0:00:21]} Rh1 {[%emt 0:00:37]} 33. Ke2 {[%emt 0:00:15]} Nfd6 {[%emt 0:02:21]} 34. Rh3 {[%emt 0:01:40]} Rxh3 {[%emt 0:00:08]} 35. Bxh3 {[%emt 0:00:04]} Ne4 {[%emt 0:00:04]} 36. Rg1 {[%emt 0:01:18]} Bxa4 {[%emt 0:00:23]} 0-1

[Event "Cracovia Festival-A 2023"]
[Site "Krakow"]
[Date "2023.12.29"]
[Round "3.11"]
[White "Pacan-Milej, Kosma"]
[Black "Cieslak, Patryk"]
[Result "0-1"]
[ECO "E52"]
[WhiteElo "2425"]
[BlackElo "2284"]
[Annotator "ChessBase"]
[PlyCount "88"]
[EventDate "2023.12.24"]
[EventType "swiss"]
[EventCountry "POL"]
[SourceTitle "playchess.com"]
[Source "ChessBase"]
[SourceQuality "1"]
[TimeControl "40/5400+30:1800+30"]

1. d4 {[%emt 0:00:03]} Nf6 {[%emt 0:00:06]} 2. c4 {[%emt 0:00:04]} e6 {[%emt 0:00:04]} 3. Nc3 {[%emt 0:00:07]} Bb4 {[%emt 0:00:02]} 4. e3 {[%emt 0:00:08]} O-O {[%emt 0:00:06]} 5. Bd3 {[%emt 0:00:09]} d5 {[%emt 0:00:06]} 6. Nf3 {[%emt 0:00:38]} b6 {[%emt 0:01:36]} 7. O-O {[%emt 0:00:12]} Ba6 {[%emt 0:00:05]} 8. cxd5 {[%emt 0:00:12]} exd5 {[%emt 0:02:02]} 9. Bxa6 {[%emt 0:00:06]} Nxa6 {[%emt 0:00:02]} 10. Bd2 {[%emt 0:00:22]} Re8 {[%emt 0:08:11]} 11. Rc1 {[%emt 0:00:12]} Bf8 {[%emt 0:04:36]} 12. Ne5 {[%emt 0:02:06]} c5 {[%emt 0:06:09]} 13. f4 {[%emt 0:01:16]} Nc7 {[%emt 0:12:31]} 14. Be1 {[%emt 0:25:41]} Ne4 {[%emt 0:10:04]} 15. Qh5 {[%emt 0:06:21]} g6 {[%emt 0:07:16]} 16. Qh3 {[%emt 0:00:51]} f6 {[%emt 0:02:24]} 17. Bh4 {[%emt 0:11:50]} Be7 {[%emt 0:08:30]} 18. Nxe4 {[%emt 0:09:56]} fxe5 {[%emt 0:01:44]} 19. Ng5 {[%emt 0:02:10]} exd4 {[%emt 0:03:12]} 20. exd4 {[%emt 0:00:23]} c4 {[%emt 0:03:40]} 21. Rce1 {[%emt 0:07:00]} Qc8 {[%emt 0:09:05]} 22. f5 {[%emt 0:08:59]} Bxg5 {[%emt 0:00:16]} 23. Bxg5 {[%emt 0:01:01]} Rxe1 {[%emt 0:00:27]} 24. Rxe1 {[%emt 0:00:07]} Qxf5 {[%emt 0:00:48]} 25. Qxf5 {[%emt 0:00:04]} gxf5 {[%emt 0:00:01]} 26. Re7 {[%emt 0:00:06]} Nb5 {[%emt 0:06:05]} 27. Bf6 {[%emt 0:00:54]} h6 {[%emt 0:01:04]} 28. Be5 {[%emt 0:04:17]} a5 {[%emt 0:00:52]} 29. Rg7+ {[%emt 0:01:11]} Kf8 {[%emt 0:00:01]} 30. Rh7 {[%emt 0:00:12]} Ra6 {[%emt 0:01:18]} 31. a4 {[%emt 0:09:46]} c3 {[%emt 0:00:39]} 32. bxc3 {[%emt 0:00:03]} Nxc3 {[%emt 0:00:10]} 33. Rxh6 {[%emt 0:00:15]} Nxa4 {[%emt 0:00:15]} 34. h4 {[%emt 0:03:00]} Nb2 {[%emt 0:01:33]} 35. h5 {[%emt 0:03:15]} Nc4 {[%emt 0:03:19]} 36. Rf6+ {[%emt 0:02:38]} Kg8 {[%emt 0:00:27]} 37. h6 {[%emt 0:02:23]} Kh7 {[%emt 0:01:42]} 38. Bf4 {[%emt 0:00:59]} Ra7 {[%emt 0:00:06]} 39. Rxf5 {[%emt 0:00:32]} a4 {[%emt 0:00:25]} 40. Bc1 {[%emt 0:00:00]} a3 {[%emt 0:00:00]} 41. Bxa3 {[%emt 0:02:23]} Nxa3 {[%emt 0:04:48]} 42. Rxd5 {[%emt 0:00:04]} b5 {[%emt 0:00:53]} 43. Rd6 {[%emt 0:02:07]} Rb7 {[%emt 0:00:59]} 44. Ra6 {[%emt 0:00:08]} b4 {[%emt 0:00:17]} 0-1

[Event "Cracovia Festival-A 2023"]
[Site "Krakow"]
[Date "2023.12.29"]
[Round "3.12"]
[White "Baumegger, Siegfried"]
[Black "Klepek, Witold"]
[Result "1-0"]
[ECO "D02"]
[WhiteElo "2388"]
[BlackElo "2252"]
[Annotator "ChessBase"]
[PlyCount "155"]
[EventDate "2023.12.24"]
[EventType "swiss"]
[EventCountry "POL"]
[SourceTitle "playchess.com"]
[Source "ChessBase"]
[SourceQuality "1"]
[TimeControl "40/5400+30:1800+30"]

1. Nf3 {[%emt 0:00:29]} d5 {[%emt 0:00:15]} 2. d4 {[%emt 0:00:18]} Nf6 {[%emt 0:00:08]} 3. c4 {[%emt 0:00:13]} e6 {[%emt 0:00:03]} 4. g3 {[%emt 0:00:10]} Bb4+ {[%emt 0:01:20]} 5. Bd2 {[%emt 0:00:12]} a5 {[%emt 0:00:12]} 6. Bg2 {[%emt 0:00:14]} O-O {[%emt 0:00:58]} 7. O-O {[%emt 0:05:25]} Nc6 {[%emt 0:04:25]} 8. Qc2 {[%emt 0:05:00]} dxc4 {[%emt 0:04:06]} 9. Qxc4 {[%emt 0:00:24]} Qd5 {[%emt 0:05:11]} 10. Rc1 {[%emt 0:01:45]} Rd8 {[%emt 0:11:30]} 11. Qxd5 {[%emt 0:11:51]} exd5 {[%emt 0:04:06]} 12. Bf4 {[%emt 0:18:29]} Ne8 {[%emt 0:07:46]} 13. Nc3 {[%emt 0:01:56]} f6 {[%emt 0:11:04]} 14. Nb5 {[%emt 0:05:44]} Rd7 {[%emt 0:03:38]} 15. h4 {[%emt 0:01:53]} a4 {[%emt 0:08:07]} 16. a3 {[%emt 0:06:54]} Bd6 {[%emt 0:06:18]} 17. e3 {[%emt 0:12:12]} Bxf4 {[%emt 0:03:10]} 18. gxf4 {[%emt 0:00:14]} Na5 {[%emt 0:01:24]} 19. Nd2 {[%emt 0:03:17]} c6 {[%emt 0:03:03]} 20. Nc3 {[%emt 0:00:10]} b5 {[%emt 0:01:27]} 21. Na2 {[%emt 0:05:07]} Nd6 {[%emt 0:02:34]} 22. Rxc6 {[%emt 0:02:53]} Nxc6 {[%emt 0:06:36]} 23. Bxd5+ {[%emt 0:00:08]} Rf7 {[%emt 0:00:31]} 24. Bxc6 {[%emt 0:00:36]} Bb7 {[%emt 0:00:11]} 25. d5 {[%emt 0:03:59]} Kf8 {[%emt 0:06:28]} 26. Nb4 {[%emt 0:00:54]} Nf5 {[%emt 0:01:38]} 27. Nf3 {[%emt 0:00:50]} Bxc6 {[%emt 0:01:13]} 28. dxc6 {[%emt 0:00:35]} Ke7 {[%emt 0:00:49]} 29. Rc1 {[%emt 0:01:30]} Rd8 {[%emt 0:01:20]} 30. Rc5 {[%emt 0:05:59]} Rd1+ {[%emt 0:01:24]} 31. Kg2 {[%emt 0:00:19]} Nd6 {[%emt 0:00:03]} 32. Nd4 {[%emt 0:01:34]} Rd2 {[%emt 0:02:03]} 33. Nd5+ {[%emt 0:03:49]} Kd8 {[%emt 0:01:17]} 34. Nxb5 {[%emt 0:00:49]} Ne4 {[%emt 0:00:59]} 35. c7+ {[%emt 0:01:22]} Rxc7 {[%emt 0:00:05]} 36. Rxc7 {[%emt 0:00:06]} Rxd5 {[%emt 0:00:08]} 37. Rc4 {[%emt 0:00:34]} Nxf2 {[%emt 0:00:41]} 38. Nd4 {[%emt 0:00:50]} Nd1 {[%emt 0:00:23]} 39. Rxa4 {[%emt 0:00:16]} Nxe3+ {[%emt 0:01:01]} 40. Kf3 {[%emt 0:00:00]} Nd1 {[%emt 0:00:00]} 41. Ke4 {[%emt 0:03:57]} Rd7 {[%emt 0:02:15]} 42. Rb4 {[%emt 0:11:43]} Ke7 {[%emt 0:05:04]} 43. a4 {[%emt 0:02:02]} Kd6 {[%emt 0:01:35]} 44. Nf5+ {[%emt 0:06:00]} Kc5 {[%emt 0:02:24]} 45. Rb5+ {[%emt 0:00:23]} Kc4 {[%emt 0:01:08]} 46. Ne3+ {[%emt 0:02:43]} Nxe3 {[%emt 0:00:05]} 47. Kxe3 {[%emt 0:00:04]} g6 {[%emt 0:00:51]} 48. b3+ {[%emt 0:00:45]} Kc3 {[%emt 0:01:53]} 49. a5 {[%emt 0:01:54]} Rd3+ {[%emt 0:00:22]} 50. Ke2 {[%emt 0:00:13]} Rd2+ {[%emt 0:00:03]} 51. Ke1 {[%emt 0:00:13]} Ra2 {[%emt 0:01:04]} 52. b4 {[%emt 0:00:26]} Kd3 {[%emt 0:01:09]} 53. Rb6 {[%emt 0:00:21]} f5 {[%emt 0:02:23]} 54. a6 {[%emt 0:00:51]} Ke3 {[%emt 0:00:27]} 55. Re6+ {[%emt 0:00:23]} Kxf4 {[%emt 0:00:39]} 56. b5 {[%emt 0:00:10]} Ra5 {[%emt 0:02:04]} 57. Re8 {[%emt 0:02:00]} Kg3 {[%emt 0:03:15]} 58. b6 {[%emt 0:01:46]} Rxa6 {[%emt 0:00:22]} 59. b7 {[%emt 0:00:08]} Ra1+ {[%emt 0:00:25]} 60. Kd2 {[%emt 0:00:07]} Rb1 {[%emt 0:00:20]} 61. b8=Q+ {[%emt 0:00:07]} Rxb8 {[%emt 0:00:03]} 62. Rxb8 {[%emt 0:00:10]} Kxh4 {[%emt 0:00:23]} 63. Ke2 {[%emt 0:00:30]} Kg4 {[%emt 0:04:03]} 64. Kf2 {[%emt 0:00:23]} h5 {[%emt 0:01:16]} 65. Rb4+ {[%emt 0:01:06]} f4 {[%emt 0:00:34]} 66. Rb6 {[%emt 0:00:21]} g5 {[%emt 0:00:19]} 67. Rg6 {[%emt 0:01:21]} h4 {[%emt 0:03:19]} 68. Rg8 {[%emt 0:00:41]} Kf5 69. Kf3 {[%emt 0:00:16]} h3 {[%emt 0:03:57]} 70. Rf8+ {[%emt 0:00:17]} Ke5 {[%emt 0:00:11]} 71. Rh8 {[%emt 0:01:04]} Kf5 {[%emt 0:00:14]} 72. Rh5 {[%emt 0:00:50]} h2 {[%emt 0:00:09]} 73. Rxh2 {[%emt 0:00:11]} g4+ {[%emt 0:00:04]} 74. Kg2 {[%emt 0:01:10]} Ke4 {[%emt 0:00:43]} 75. Rh8 {[%emt 0:00:55]} Ke3 {[%emt 0:00:27]} 76. Re8+ {[%emt 0:00:06]} Kd2 {[%emt 0:00:17]} 77. Kf2 {[%emt 0:00:21]} Kd3 {[%emt 0:00:03]} 78. Rg8 {[%emt 0:00:13]} 1-0

[Event "Cracovia Festival-A 2023"]
[Site "Krakow"]
[Date "2023.12.29"]
[Round "3.13"]
[White "Karolczuk, Iwo"]
[Black "Balint, Peter"]
[Result "0-1"]
[ECO "C77"]
[WhiteElo "2365"]
[BlackElo "2187"]
[Annotator "ChessBase"]
[PlyCount "144"]
[EventDate "2023.12.24"]
[EventType "swiss"]
[EventCountry "POL"]
[SourceTitle "playchess.com"]
[Source "ChessBase"]
[SourceQuality "1"]
[TimeControl "40/5400+30:1800+30"]

1. e4 {[%emt 0:00:34]} e5 {[%emt 0:00:03]} 2. Nf3 {[%emt 0:00:13]} Nc6 {[%emt 0:00:06]} 3. Bb5 {[%emt 0:00:08]} a6 {[%emt 0:00:19]} 4. Ba4 {[%emt 0:00:12]} Nf6 {[%emt 0:00:07]} 5. d3 {[%emt 0:00:11]} d6 {[%emt 0:00:11]} 6. c3 {[%emt 0:00:23]} g6 {[%emt 0:00:11]} 7. O-O {[%emt 0:00:40]} Bg7 {[%emt 0:00:17]} 8. h3 {[%emt 0:01:08]} O-O {[%emt 0:01:21]} 9. Re1 {[%emt 0:00:30]} h6 {[%emt 0:01:36]} 10. Nbd2 {[%emt 0:00:17]} b5 {[%emt 0:10:02]} 11. Bb3 {[%emt 0:04:06]} Na5 {[%emt 0:04:06]} 12. Bc2 {[%emt 0:00:08]} c5 {[%emt 0:00:05]} 13. Nf1 {[%emt 0:00:52]} Re8 {[%emt 0:01:54]} 14. Ng3 {[%emt 0:00:34]} Bb7 {[%emt 0:01:15]} 15. Be3 {[%emt 0:05:30]} Qe7 {[%emt 0:03:26]} 16. b4 {[%emt 0:16:45]} Nc6 {[%emt 0:07:41]} 17. Qd2 {[%emt 0:01:04]} Kh7 {[%emt 0:00:23]} 18. a4 {[%emt 0:00:41]} cxb4 {[%emt 0:08:55]} 19. cxb4 {[%emt 0:00:16]} Nd7 {[%emt 0:03:24]} 20. Bb3 {[%emt 0:06:43]} Qf8 {[%emt 0:08:52]} 21. Rac1 {[%emt 0:15:40]} Rac8 {[%emt 0:07:39]} 22. axb5 {[%emt 0:00:44]} axb5 {[%emt 0:00:08]} 23. Bd5 {[%emt 0:11:06]} Nf6 {[%emt 0:01:35]} 24. Ba2 {[%emt 0:00:17]} Ra8 {[%emt 0:09:04]} 25. Bb3 {[%emt 0:02:23]} Ra3 {[%emt 0:03:00]} 26. Rb1 {[%emt 0:00:12]} Rea8 {[%emt 0:02:29]} 27. Ne2 {[%emt 0:05:18]} Nd7 {[%emt 0:07:54]} 28. Nc3 {[%emt 0:10:47]} f5 {[%emt 0:02:04]} 29. Be6 {[%emt 0:01:55]} f4 {[%emt 0:04:24]} 30. Bxd7 {[%emt 0:00:29]} fxe3 {[%emt 0:00:05]} 31. fxe3 {[%emt 0:00:28]} Qe7 {[%emt 0:01:35]} 32. Bxc6 {[%emt 0:01:15]} Bxc6 {[%emt 0:00:04]} 33. Rec1 {[%emt 0:04:26]} h5 {[%emt 0:01:09]} 34. Nd1 {[%emt 0:00:57]} Bb7 {[%emt 0:03:01]} 35. Rc2 {[%emt 0:00:41]} d5 {[%emt 0:03:26]} 36. exd5 {[%emt 0:00:36]} Bxd5 {[%emt 0:00:22]} 37. e4 {[%emt 0:00:37]} Bh6 {[%emt 0:01:14]} 38. Qf2 {[%emt 0:03:08]} Bb3 {[%emt 0:03:30]} 39. Rc5 {[%emt 0:03:42]} Ra1 {[%emt 0:00:51]} 40. Nc3 {[%emt 0:00:00]} Rxb1+ {[%emt 0:00:00]} 41. Nxb1 {[%emt 0:04:21]} Ra2 {[%emt 0:17:09]} 42. Nbd2 {[%emt 0:04:47]} Qa7 {[%emt 0:01:19]} 43. h4 {[%emt 0:05:34]} Bf4 {[%emt 0:10:45]} 44. g3 {[%emt 0:01:55]} Bd1 {[%emt 0:01:06]} 45. Ng5+ {[%emt 0:04:30]} Bxg5 {[%emt 0:00:04]} 46. hxg5 {[%emt 0:00:08]} Bf3 {[%emt 0:00:23]} 47. Qe3 {[%emt 0:05:31]} Ra1+ {[%emt 0:01:06]} 48. Kf2 {[%emt 0:00:09]} Bg4 {[%emt 0:01:50]} 49. Rxe5 {[%emt 0:00:47]} Qf7+ {[%emt 0:01:46]} 50. Qf4 {[%emt 0:00:20]} Qxf4+ {[%emt 0:01:10]} 51. gxf4 {[%emt 0:00:06]} Ra2 {[%emt 0:00:03]} 52. Ke3 {[%emt 0:01:02]} h4 {[%emt 0:00:03]} 53. f5 {[%emt 0:05:09]} h3 {[%emt 0:01:10]} 54. Re7+ {[%emt 0:01:37]} Kg8 {[%emt 0:00:31]} 55. fxg6 {[%emt 0:00:31]} Rb2 {[%emt 0:00:29]} 56. Rh7 {[%emt 0:01:23]} Rxb4 {[%emt 0:00:06]} 57. Rh4 {[%emt 0:00:42]} Bc8 {[%emt 0:00:20]} 58. Nf3 {[%emt 0:01:19]} Rb1 {[%emt 0:00:36]} 59. Nd4 {[%emt 0:00:33]} b4 {[%emt 0:01:34]} 60. Nf5 {[%emt 0:02:08]} b3 {[%emt 0:00:09]} 61. Kd2 {[%emt 0:01:29]} Bxf5 {[%emt 0:00:26]} 62. exf5 {[%emt 0:00:21]} h2 {[%emt 0:00:05]} 63. Kc3 {[%emt 0:01:26]} h1=Q {[%emt 0:00:05]} 64. Rxh1 {[%emt 0:00:04]} Rxh1 {[%emt 0:00:04]} 65. Kxb3 {[%emt 0:00:03]} Kg7 {[%emt 0:01:23]} 66. Kc4 {[%emt 0:00:18]} Rf1 {[%emt 0:00:06]} 67. d4 {[%emt 0:01:00]} Rxf5 {[%emt 0:00:03]} 68. d5 {[%emt 0:00:05]} Kxg6 {[%emt 0:00:05]} 69. d6 {[%emt 0:01:10]} Kxg5 {[%emt 0:00:30]} 70. d7 {[%emt 0:00:05]} Rf8 {[%emt 0:00:03]} 71. Kd5 {[%emt 0:00:04]} Kf6 {[%emt 0:00:03]} 72. Kd6 {[%emt 0:00:05]} Rd8 {[%emt 0:00:03]} 0-1

[Event "Cracovia Festival-A 2023"]
[Site "Krakow"]
[Date "2023.12.29"]
[Round "3.14"]
[White "Kucza, Karol"]
[Black "Podolskyi, Mykhailo"]
[Result "0-1"]
[ECO "B40"]
[WhiteElo "2343"]
[BlackElo "2177"]
[Annotator "ChessBase"]
[PlyCount "102"]
[EventDate "2023.12.24"]
[EventType "swiss"]
[EventCountry "POL"]
[SourceTitle "playchess.com"]
[Source "ChessBase"]
[SourceQuality "1"]
[TimeControl "40/5400+30:1800+30"]

1. e4 {[%emt 0:00:17]} c5 {[%emt 0:12:07]} 2. Nf3 {[%emt 0:00:08]} e6 {[%emt 0:00:18]} 3. d4 {[%emt 0:00:08]} cxd4 {[%emt 0:00:04]} 4. Nxd4 {[%emt 0:00:06]} Nf6 {[%emt 0:00:09]} 5. Nc3 {[%emt 0:00:08]} Nc6 {[%emt 0:00:05]} 6. Ndb5 {[%emt 0:00:07]} Bc5 {[%emt 0:00:22]} 7. Bf4 {[%emt 0:00:55]} O-O {[%emt 0:00:11]} 8. Bc7 {[%emt 0:00:07]} Qe7 {[%emt 0:00:07]} 9. Bd6 {[%emt 0:00:06]} Bxd6 {[%emt 0:00:04]} 10. Qxd6 {[%emt 0:00:08]} Qd8 {[%emt 0:00:06]} 11. O-O-O {[%emt 0:00:17]} a6 {[%emt 0:00:16]} 12. Nd4 {[%emt 0:00:08]} Qb6 {[%emt 0:05:20]} 13. Nxc6 {[%emt 0:26:28]} bxc6 {[%emt 0:05:29]} 14. f3 {[%emt 0:01:54]} Ne8 {[%emt 0:02:44]} 15. Qd4 {[%emt 0:13:34]} Qxd4 {[%emt 0:15:25]} 16. Rxd4 {[%emt 0:00:07]} d5 {[%emt 0:00:14]} 17. Na4 {[%emt 0:00:23]} Nf6 {[%emt 0:27:42]} 18. Nb6 {[%emt 0:07:12]} Rb8 {[%emt 0:00:57]} 19. Nxc8 {[%emt 0:00:19]} Rfxc8 {[%emt 0:01:03]} 20. Bxa6 {[%emt 0:01:58]} Rc7 {[%emt 0:00:11]} 21. exd5 {[%emt 0:24:38]} cxd5 {[%emt 0:00:43]} 22. Be2 {[%emt 0:00:55]} e5 {[%emt 0:07:41]} 23. Ra4 {[%emt 0:02:28]} Rbc8 {[%emt 0:13:54]} 24. Bd1 {[%emt 0:01:12]} Nd7 {[%emt 0:00:33]} 25. Ra5 {[%emt 0:05:14]} d4 {[%emt 0:02:09]} 26. Re1 {[%emt 0:01:48]} f6 {[%emt 0:00:43]} 27. Rb5 {[%emt 0:00:28]} Nc5 {[%emt 0:00:51]} 28. Kd2 {[%emt 0:01:04]} Ne6 {[%emt 0:03:26]} 29. g3 {[%emt 0:00:33]} g5 {[%emt 0:00:40]} 30. a4 {[%emt 0:02:08]} Kf7 {[%emt 0:00:51]} 31. a5 {[%emt 0:00:24]} Ke7 {[%emt 0:00:43]} 32. Rb6 {[%emt 0:03:39]} Nc5 {[%emt 0:00:42]} 33. b3 {[%emt 0:01:33]} Nd7 {[%emt 0:00:33]} 34. Rb5 {[%emt 0:00:12]} Kd6 {[%emt 0:00:35]} 35. f4 {[%emt 0:00:59]} Kc6 {[%emt 0:00:29]} 36. Rb4 {[%emt 0:00:41]} Kd6 {[%emt 0:00:32]} 37. fxe5+ {[%emt 0:01:30]} fxe5 {[%emt 0:00:05]} 38. Rf1 {[%emt 0:00:16]} Nc5 {[%emt 0:00:16]} 39. Rf6+ {[%emt 0:03:54]} Ke7 {[%emt 0:01:05]} 40. Rh6 {[%emt 0:00:00]} Ne4+ {[%emt 0:00:00]} 41. Ke1 {[%emt 0:00:34]} Nf6 {[%emt 0:02:16]} 42. Rb6 {[%emt 0:01:23]} Rc6 {[%emt 0:00:27]} 43. Rb7+ {[%emt 0:07:59]} R6c7 {[%emt 0:04:35]} 44. Rb6 {[%emt 0:07:17]} Rc6 {[%emt 0:00:11]} 45. Bg4 {[%emt 0:03:28]} Rxb6 {[%emt 0:11:41]} 46. Bxc8 {[%emt 0:00:07]} Rc6 {[%emt 0:00:13]} 47. Bf5 {[%emt 0:00:06]} e4 {[%emt 0:00:30]} 48. Kd2 {[%emt 0:04:06]} Rc5 {[%emt 0:00:51]} 49. g4 {[%emt 0:03:34]} Rxa5 {[%emt 0:00:53]} 50. h4 {[%emt 0:00:03]} Rxf5 {[%emt 0:05:32]} 51. gxf5 {[%emt 0:00:16]} g4 {[%emt 0:00:05]} 0-1

[Event "Cracovia Festival-A 2023"]
[Site "Krakow"]
[Date "2023.12.29"]
[Round "3.15"]
[White "Fishchuk, Vladyslav"]
[Black "Steindl, Johannes"]
[Result "1/2-1/2"]
[ECO "E15"]
[WhiteElo "2198"]
[BlackElo "2334"]
[Annotator "ChessBase"]
[PlyCount "34"]
[EventDate "2023.12.24"]
[EventType "swiss"]
[EventCountry "POL"]
[SourceTitle "playchess.com"]
[Source "ChessBase"]
[SourceQuality "1"]
[TimeControl "40/5400+30:1800+30"]

1. d4 {[%emt 0:00:04]} Nf6 {[%emt 0:00:03]} 2. c4 {[%emt 0:00:05]} e6 {[%emt 0:00:04]} 3. Nf3 {[%emt 0:00:05]} b6 {[%emt 0:00:02]} 4. g3 {[%emt 0:00:06]} Ba6 {[%emt 0:00:02]} 5. Nbd2 {[%emt 0:00:13]} Bb7 {[%emt 0:00:09]} 6. Bg2 {[%emt 0:00:11]} Be7 {[%emt 0:00:04]} 7. O-O {[%emt 0:09:58]} O-O {[%emt 0:00:04]} 8. Qc2 {[%emt 0:01:22]} d5 {[%emt 0:00:04]} 9. Rd1 {[%emt 0:02:33]} Nbd7 {[%emt 0:00:53]} 10. b3 {[%emt 0:00:56]} Rc8 {[%emt 0:00:29]} 11. Bb2 {[%emt 0:01:26]} c5 {[%emt 0:00:27]} 12. Rac1 {[%emt 0:03:53]} dxc4 {[%emt 0:07:37]} 13. Qxc4 {[%emt 0:03:35]} cxd4 {[%emt 0:19:37]} 14. Qxd4 {[%emt 0:00:34]} Bc5 {[%emt 0:00:25]} 15. Qh4 {[%emt 0:06:07]} Qe7 {[%emt 0:00:04]} 16. Ne5 {[%emt 0:04:34]} Nxe5 {[%emt 0:29:03]} 17. Bxe5 {[%emt 0:00:18]} Bxg2 {[%emt 0:00:21]} 1/2-1/2